[Event "44th Chess Olympiad Women 2022"]
[Site "Chennai"]
[Date "2022.07.30"]
[Round "2.5"]
[White "Wafa, Shahenda"]
[Black "Navrotescu, Andreea"]
[Result "0-1"]
[ECO "C55"]
[WhiteElo "2115"]
[BlackElo "2373"]
[Annotator "TA"]
[PlyCount "70"]
[EventDate "2022.07.29"]
[EventType "team-tourn"]
[EventCountry "IND"]
[SourceTitle "playchess.com"]
[Source "ChessBase"]
[SourceQuality "1"]
[WhiteTeam "Egypt"]
[BlackTeam "France"]
[WhiteTeamCountry "EGY"]
[BlackTeamCountry "FRA"]
[TimeControl "40/5400+30:1800+30"]

{[%evp 18,70,9,14,23,29,14,9,68,0,0,0,4,0,29,-19,18,-34,30,21,18,15,31,-138,-132,-144,-160,-141,-174,-157,-166,-227,-233,-314,-235,-212,-116,-129,-116,-94,-39,-28,-53,-43,-55,-41,-53,-156,-162,-825,-806,-1321,-1241,-29996,-29997]} 1. e4 {[%emt 0:00:04]} e5 {[%emt 0:00:04]} 2. Nf3 {[%emt 0:00:08]} Nc6 {[%emt 0:00:05]} 3. Bb5 {[%emt 0:00:18]} a6 {[%emt 0:00:10]} 4. Ba4 {[%emt 0:00:07]} Nf6 {[%emt 0:00:14]} 5. O-O {[%emt 0:00:32]} Be7 {[%emt 0:00:19]} 6. d3 {[%emt 0:00:29][%cal Bd2d3,Bd3d4][%mdl 32]} b5 {[%emt 0:00:31]} 7. Bb3 {[%emt 0:00:07]} d6 {[%emt 0:00:34]} 8. c3 {[%emt 0:01:13]} O-O {[%emt 0:00:27]} 9. h3 {[%emt 0:03:49] now scores much better than the old 9.Re1.} Na5 {[%emt 0:01:00][%cal Bc6a5,Ba5b7,Bb7c5][%mdl 32]} 10. Bc2 {[%emt 0:00:29]} c5 {[%emt 0:00:23] C55: Two Knights: 4 d3, 4 d4 exd4 5 e5 and Max Lange Attack.} 11. d4 {[%emt 0:03:34]} Qc7 {[%emt 0:01:49]} 12. d5 {[%emt 0:04:52]} c4 {[%emt 0:06:26]} ({Black should try} 12... Nd7 $11) 13. Nbd2 {[%emt 0:06:20]} (13. b4 $14) 13... Nb7 $11 {[%emt 0:01:13]} 14. Re1 {[%emt 0:00:41]} Nc5 {[%emt 0:01:11]} 15. Nf1 {[%emt 0:00:25] [#]} Ne8 $146 {[%emt 0:01:43][%cal Bf6e8,Be8g7,Bg7h5,Bh5f4][%mdl 32]} ({Predecessor:} 15... Bd7 16. Ng3 Rfc8 17. Nh2 Qb6 18. Qf3 g6 19. Bg5 Kg7 20. Qe3 Na4 21. Qc1 Rab8 22. a3 Nc5 23. h4 h5 24. Be3 Qd8 25. f4 Ng4 26. Nxg4 Bxh4 {0-1 (26) Romanov,N (1587)-Filimonov,M (1915) St Petersburg 2019}) 16. g4 {[%emt 0:03:23]} (16. b4 $142 Nd3 17. Bxd3 cxd3 18. Qxd3) 16... h5 {[%emt 0:04:34]} 17. N3h2 {[%emt 0:08:22]} (17. Ne3 $11) 17... g6 {[%emt 0:05:06]} (17... hxg4 $15 18. hxg4 Nf6) 18. gxh5 {[%emt 0:18:12]} Bxh3 {[%emt 0:03:33]} 19. Qf3 {[%emt 0:06:53]} Qc8 {[%emt 0:04:16]} 20. Qg3 $2 {[%emt 0:01:27]} (20. Ng3 $14 {stays ahead.}) 20... Ng7 $1 $17 {[%emt 0:05:10]} 21. hxg6 {[%emt 0:04:08]} Nh5 $1 {[%emt 0:08:30]} 22. gxf7+ {[%emt 0:06:06]} Kxf7 {[%emt 0:00:24][%cal Bg8f7,Bf7g6,Bg6h7][%mdl 32]} 23. Qf3+ {[%emt 0:00:28]} Kg6 {[%emt 0:00:02][%mdl 1024] Black has strong compensation. Chess con chili.} 24. Qe3 {[%emt 0:02:03]} (24. Qe2 $142 Bh4 25. Ng3 (25. Bd1 $2 Bxf2+ 26. Kh1 Ng7 $19) 25... Nxg3 26. Qe3) 24... Nf4 $1 $19 {[%emt 0:03:58]} 25. Ng3 {[%emt 0:01:54]} Kh7 {[%emt 0:05:02] aiming for ...Bg2.} 26. Qf3 {[%emt 0:02:47] [#]} Bg2 {[%emt 0:02:51]} (26... Qe8 $1 $19 {Threatens to win with ...Nfd3.} 27. Bxf4 Rxf4) 27. Qd1 $17 {[%emt 0:02:05]} Qh3 {[%emt 0:03:11][%cal Og2h1] 0x0.00144e10923ddp-1022s more active pieces.} 28. Bxf4 {[%emt 0:01:49]} Rxf4 {[%emt 0:03:28]} (28... exf4 $17 29. Qh5+ Qxh5 30. Nxh5 Bh3) 29. Qh5+ $15 {[%emt 0:01:58]} Qxh5 {[%emt 0:00:21]} 30. Nxh5 {[%emt 0:00:21] [#]} Rg8 $1 $36 {[%emt 0:00:06][%cal Rg2e4][%mdl 2048] Black has the initiative.} 31. Nxf4 {[%emt 0:07:03]} exf4 {[%emt 0:10:38]} 32. f3 {[%emt 0:08:22] [#]} (32. Rad1 $1 $15) 32... Bh4 $1 $17 {[%emt 0:08:12] Strongly threatening ...Nd3.} 33. e5+ $2 {[%emt 0:00:13]} (33. Red1) 33... Nd3 $19 {[%emt 0:00:21] ( -> ...Bf2#)} ({Inferior is} 33... Kh8 34. exd6 Bxf3+ 35. Kf1 Bg2+ 36. Ke2 $11) 34. Bxd3+ {[%emt 0:01:16]} cxd3 {[%emt 0:00:02]} 35. Red1 {[%emt 0:02:34]} Bxf3+ {[%emt 0:00:35][%mdl 64] Discovered Attack, Double Attack.  Weighted Error Value: White=0.84/Black=0.17 (very precise)} 0-1

[Event "44th Chess Olympiad Women 2022"]
[Site "Chennai"]
[Date "2022.07.30"]
[Round "2.6"]
[White "Tuominen, Tanja"]
[Black "Mammadova, Gulnar"]
[Result "0-1"]
[ECO "A08"]
[WhiteElo "2080"]
[BlackElo "2380"]
[Annotator "TA"]
[PlyCount "78"]
[EventDate "2022.07.29"]
[EventType "team-tourn"]
[EventCountry "IND"]
[SourceTitle "playchess.com"]
[Source "ChessBase"]
[SourceQuality "1"]
[WhiteTeam "Finland"]
[BlackTeam "Azerbaijan"]
[WhiteTeamCountry "FIN"]
[BlackTeamCountry "AZE"]
[TimeControl "40/5400+30:1800+30"]

{[%evp 16,78,0,-12,-20,-13,0,-2,21,7,12,-7,24,35,20,-23,0,0,0,-41,-26,-21,-21,-72,-24,-72,-52,-86,-34,-43,-47,-197,-213,-223,-224,-205,-212,-226,-215,-429,-431,-452,-451,-615,-615,-610,-597,-588,-564,-614,-547,-504,-494,-571,-558,-520,-522,-704,-699,-643,-620,-29988,-29989,-29996,-29997]} 1. e4 {[%emt 0:00:06]} e6 {[%emt 0:00:04]} 2. d3 {[%emt 0:00:09]} d5 {[%emt 0:00:10]} 3. Nd2 {[%emt 0:00:04]} c5 {[%emt 0:00:27]} 4. Ngf3 {[%emt 0:00:52]} Nc6 {[%emt 0:00:31]} 5. g3 {[%emt 0:00:16]} g6 {[%emt 0:01:06]} 6. Bg2 {[%emt 0:00:17]} Bg7 {[%emt 0:00:07]} 7. O-O {[%emt 0:00:21]} Nge7 {[%emt 0:00:35]} 8. Re1 {[%emt 0:01:18]} b6 {[%emt 0:02:04]} 9. Nf1 {[%emt 0:04:14]} dxe4 {[%emt 0:09:30] was the old line (9...h6). A08: King's Indian Attack.} 10. dxe4 {[%emt 0:04:17]} Ba6 {[%emt 0:08:09] Against Qe2} 11. c3 {[%emt 0:10:18] [#]} Qc7 $146 {[%emt 0:02:42] The position is equal.} ({Predecessor:} 11... Qxd1 12. Rxd1 O-O 13. Bg5 Rfd8 14. Bxe7 Nxe7 15. Ne3 Bb7 16. Ne1 b5 17. Rxd8+ Rxd8 18. Rd1 Rxd1 19. Nxd1 Nc6 20. f4 c4 {0-1 (53) Samolins,V (2407)-Gleizerov,E (2566) Jurmala 2012}) 12. Bg5 {[%emt 0:16:39]} h6 {[%emt 0:05:34]} 13. Bxe7 {[%emt 0:07:19]} Qxe7 {[%emt 0:00:36]} 14. Qa4 {[%emt 0:05:37][%csl LRa6,LRc6]} Bb7 {[%emt 0:01:17]} 15. e5 {[%emt 0:00:41][%cal Of3d4]} (15. N3d2 $5 {[%cal Re4e5]}) 15... O-O {[%emt 0:01:22]} 16. h4 {[%emt 0:01:54]} Qc7 {[%emt 0:09:13]} 17. Qf4 {[%emt 0:02:17]} Rae8 {[%emt 0:03:42]} 18. N1h2 {[%emt 0:09:03]} f5 {[%emt 0:07:59] Prevents Ng4.} (18... Ne7 {is interesting.} 19. Ng4 Nf5 20. Qc4 Qe7) 19. Rad1 {[%emt 0:08:26]} (19. exf6 $11 Qxf4 20. gxf4 Rxf6 21. Ne5 Nxe5 22. fxe5) 19... Rd8 {[%emt 0:02:31]} (19... Nd8 $17) 20. Rxd8 {[%emt 0:00:30]} (20. Rd2 $11 {might be stronger.}) 20... Rxd8 {[%emt 0:03:23]} 21. g4 {[%emt 0:04:42]} Rd5 {[%emt 0:03:57]} (21... Qd7 $17 22. h5 Ne7) 22. h5 {[%emt 0:03:58]} g5 {[%emt 0:03:28]} 23. Nxg5 {[%emt 0:00:33] This costs White the game.} Rxe5 $19 {[%emt 0:03:38]} ({Weaker is} 23... hxg5 24. Qxg5 Qe7 25. Qxe7 Nxe7 26. Bxd5 Nxd5 27. gxf5 $11) 24. Rf1 {[%emt 0:02:03] Nxe6 is the strong threat.} hxg5 {[%emt 0:02:00]} 25. Qxg5 {[%emt 0:00:06] [#]} fxg4 $1 {[%emt 0:04:18]} 26. Qxg4 {[%emt 0:00:08]} Kh8 {[%emt 0:04:12] Threatens to win with ...Rf5.} 27. Nf3 $2 {[%emt 0:03:33]} (27. h6 {only move.} Bxh6 28. Qh3) 27... Rf5 {[%emt 0:00:51]} 28. Nh4 {[%emt 0:00:50]} Ne5 {[%emt 0:01:32]} 29. Ng6+ {[%emt 0:06:16]} Nxg6 {[%emt 0:01:53]} 30. hxg6 {[%emt 0:02:28]} Bxg2 {[%emt 0:00:25]} 31. Kxg2 {[%emt 0:00:31]} Qc6+ {[%emt 0:01:16]} 32. Kg3 {[%emt 0:00:55]} Qd6+ {[%emt 0:01:53]} 33. f4 {[%emt 0:00:55]} Rd5 {[%emt 0:03:12]} 34. Re1 {[%emt 0:01:16]} Rd3+ {[%emt 0:01:55]} 35. Kf2 {[%emt 0:00:55]} Rd2+ {[%emt 0:02:00]} 36. Kg1 {[%emt 0:01:54]} Qd3 {[%emt 0:01:54]} 37. f5 {[%emt 0:01:24] And now f6 would win.} Bh6 {[%emt 0:01:38] ( -> ...Be3+)} 38. Qh4 {[%emt 0:01:28] [#]} Kg8 $1 {[%emt 0:00:35]} 39. g7 {[%emt 0:00:55]} (39. Qf2 Rxf2) 39... Be3+ {[%emt 0:00:33] Weighted Error Value: White=0.53/Black=0.08 (flawless)} 0-1

[Event "44th Chess Olympiad Women 2022"]
[Site "Chennai"]
[Date "2022.07.30"]
[Round "2.7"]
[White "Krush, Irina"]
[Black "Yakubbaeva, Nilufar"]
[Result "1-0"]
[ECO "E17"]
[WhiteElo "2430"]
[BlackElo "2299"]
[Annotator "TA"]
[PlyCount "57"]
[EventDate "2022.07.29"]
[EventType "team-tourn"]
[EventCountry "IND"]
[SourceTitle "playchess.com"]
[Source "ChessBase"]
[SourceQuality "1"]
[WhiteTeam "United States"]
[BlackTeam "Uzbekistan"]
[WhiteTeamCountry "USA"]
[BlackTeamCountry "UZB"]
[TimeControl "40/5400+30:1800+30"]

{[%evp 15,57,35,14,0,0,0,24,10,35,-20,-28,-22,-27,-28,-35,-50,-54,-67,-20,-7,0,0,8,8,21,0,53,51,56,31,48,33,145,151,216,223,225,225,238,211,241,226,764,728]} 1. d4 {[%emt 0:00:04]} Nf6 {[%emt 0:00:10]} 2. c4 {[%emt 0:00:09]} e6 {[%emt 0:00:13]} 3. Nf3 {[%emt 0:00:13]} b6 {[%emt 0:00:34]} 4. g3 {[%emt 0:00:21]} Bb7 {[%emt 0:00:30]} 5. Bg2 {[%emt 0:00:12]} Be7 {[%emt 0:02:24]} 6. O-O {[%emt 0:00:22]} Na6 {[%emt 0:01:32][%cal Bb8a6,Ba6c5,Bc5e4][%mdl 32]} 7. Nc3 {[%emt 0:01:21]} O-O {[%emt 0:04:27]} 8. d5 {[%emt 0:09:55]} Bb4 {[%emt 0:02:39]} 9. Nd4 {[%emt 0:06:28] E17: Queen's Indian: 4 g3 Bb7 5 Bg2 Be7.} Bxc3 {[%emt 0:11:29]} 10. bxc3 {[%emt 0:00:03]} Nc5 {[%emt 0:11:13][%cal Re6d5]} 11. Nb3 {[%emt 0:01:34] White has an edge.} Nce4 {[%emt 0:11:33][%cal Re6d5]} 12. Qc2 {[%emt 0:08:44]} (12. Qd4 $14 exd5 13. cxd5 Bxd5 14. c4) 12... exd5 $11 {[%emt 0:07:01]} 13. cxd5 {[%emt 0:00:10]} Bxd5 {[%emt 0:02:44]} 14. c4 {[%emt 0:00:03]} Bb7 {[%emt 0:00:42]} 15. Bb2 {[%emt 0:01:36]} Re8 $1 {[%emt 0:05:15] [#]} 16. Nd4 $146 {[%emt 0:07:19]} ({Predecessor:} 16. f3 Ng5 17. h4 Ne6 18. e4 d6 19. Rad1 Nd7 20. f4 f6 21. e5 Bxg2 22. Qxg2 fxe5 23. fxe5 dxe5 {0-1 (53) Poetter,C (2011)-Dahm,B (2080) Nordrheinwestfalen 2019}) 16... d6 {[%emt 0:11:22]} (16... c5 $15 17. Nf5 d5 18. cxd5 Qxd5 19. Nh6+ Kf8 20. Bxf6 Qh5) 17. Nf5 {[%emt 0:09:51]} Qc8 {[%emt 0:02:10]} 18. Bh3 {[%emt 0:01:56][%cal Of5h6] And now Nh6+! would win. This bishop pair is nice.} Kh8 {[%emt 0:05:23]} 19. f3 {[%emt 0:01:53] Strongly threatening Qc1.} Ng5 {[%emt 0:01:13]} 20. Bg2 {[%emt 0:02:27][%mdl 1024] White has compensation.} Qd8 {[%emt 0:03:21]} (20... Ne6 $1 $11) 21. e4 {[%emt 0:00:27]} Ne6 {[%emt 0:01:44]} 22. h4 {[%emt 0:13:40][%cal Bh2h4,Bh4h5,Bh5h6][%mdl 32]} Ng8 {[%emt 0:06:06]} 23. Rad1 {[%emt 0:02:00]} Ne7 {[%emt 0:01:46] [#]} ({Black should try} 23... Bc6 $14) 24. Qc3 $1 $16 {[%emt 0:07:56][%cal Rf5g7] White is much more active.} f6 {[%emt 0:03:09] [#]} (24... Rg8 $16) 25. Nxg7 $1 $18 {[%emt 0:01:23][%mdl 576] Remove Defender} Nxg7 {[%emt 0:00:07]} 26. Qxf6 $40 {[%emt 0:00:06][%csl Gb2][%cal Rf6g7][%mdl 128] White attacks with force.} Rg8 {[%emt 0:00:16]} 27. h5 {[%emt 0:00:09]} Nc6 {[%emt 0:02:49] Threatens to win with ...Qxf6.} 28. h6 {[%emt 0:00:25][%mdl 64] Pin} Ne5 $2 {[%emt 0:00:02]} (28... Qxf6 29. Bxf6 Rge8 30. hxg7+ Kg8) 29. Bxe5 {[%emt 0:00:41] Weighted Error Value: White=0.08 (flawless) /Black=0.33} 1-0

[Event "44th Chess Olympiad Women 2022"]
[Site "Chennai"]
[Date "2022.07.30"]
[Round "2.7"]
[White "Malikova, Marjona"]
[Black "Abrahamyan, Tatev"]
[Result "0-1"]
[ECO "E35"]
[WhiteElo "1756"]
[BlackElo "2291"]
[Annotator "TA"]
[PlyCount "70"]
[EventDate "2022.07.29"]
[EventType "team-tourn"]
[EventCountry "IND"]
[SourceTitle "playchess.com"]
[Source "ChessBase"]
[SourceQuality "1"]
[WhiteTeam "Uzbekistan"]
[BlackTeam "United States"]
[WhiteTeamCountry "UZB"]
[BlackTeamCountry "USA"]
[TimeControl "40/5400+30:1800+30"]

{[%evp 16,70,0,0,0,0,11,6,10,5,26,31,33,-53,-62,-60,-48,-56,-41,-200,-59,-47,-56,-62,-24,-25,-30,-28,-17,-15,-18,-22,-13,-35,-23,-101,-118,-197,-182,-199,-178,-412,-377,-500,-551,-527,-513,-464,-466,-1314,-1314,-29993,-29994,-29994,-29995,-29998,-29999]} 1. d4 {[%emt 0:00:06]} Nf6 {[%emt 0:00:05]} 2. c4 {[%emt 0:00:10]} e6 {[%emt 0:00:13]} 3. Nc3 {[%emt 0:00:18]} Bb4 {[%emt 0:00:13]} 4. Qc2 {[%emt 0:00:13]} d5 {[%emt 0:01:14]} 5. cxd5 {[%emt 0:00:46]} exd5 {[%emt 0:00:15]} 6. Bg5 {[%emt 0:01:19]} h6 {[%emt 0:00:30]} 7. Bxf6 {[%emt 0:01:54]} Qxf6 {[%emt 0:00:09]} 8. a3 {[%emt 0:01:59]} Bxc3+ {[%emt 0:02:38]} 9. Qxc3 {[%emt 0:00:15]} O-O {[%emt 0:01:33] E35: Nimzo-Indian: Classical: 4...d5 5 cxd5 exd5.} 10. Nf3 {[%emt 0:03:01]} Nc6 {[%emt 0:10:44]} 11. e3 {[%emt 0:05:16]} Bg4 {[%emt 0:02:35] The position is equal.} 12. Be2 {[%emt 0:04:46]} a5 {[%emt 0:04:38] [#]} 13. h3 $146 {[%emt 0:03:29]} ({Predecessor:} 13. O-O Qd6 14. Rac1 Rfc8 15. h3 Bh5 16. Qc5 Qd8 17. Qc2 Ne7 18. Ne5 Bxe2 19. Qxe2 Qd6 20. Qf3 Qe6 21. Nd3 Qf5 22. Qxf5 Nxf5 {½-½ (22) Soos,B-Bellin,R Eksjo 1973}) 13... Bh5 {[%emt 0:08:19]} 14. Ne5 {[%emt 0:21:47]} ({White should play} 14. O-O $14) 14... Bxe2 $15 {[%emt 0:04:49]} 15. Nxc6 {[%emt 0:03:40]} (15. Nd7 $2 Qe7 16. Nxf8 Bc4 $19) 15... Ba6 {[%emt 0:13:56]} 16. Ne5 {[%emt 0:05:49][%cal Bc6e5,Be5d3,Bd3c5][%mdl 32]} Rfe8 {[%emt 0:05:02][%cal Bf8e8,Be8e4,Be4e2,Be2f2][%mdl 32]} 17. Qxa5 $2 {[%emt 0:12:25] [#]} (17. Qxc7 $2 Rec8 18. Qxf7+ Qxf7 19. Nxf7 Kxf7 $19) (17. Nd3 $1 $15) 17... Qd6 {[%emt 0:09:22]} ({Not} 17... c6 18. Qc3 $11) (17... c5 $1 $19 {[%cal Rc5d4] Hoping for ...cxd4.} 18. Qxc5 Rac8 19. Qxd5 Rc2) 18. Qd2 {[%emt 0:06:39]} c5 {[%emt 0:03:43] aiming for ...cxd4.} 19. O-O-O {[%emt 0:04:54]} cxd4 {[%emt 0:12:39]} 20. exd4 {[%emt 0:00:08]} f6 {[%emt 0:00:45]} 21. Nd3 {[%emt 0:01:45]} Re4 {[%emt 0:02:50][%mdl 1024] Black has compensation.} 22. Qb4 {[%emt 0:03:01]} Qc6+ {[%emt 0:01:03]} 23. Kb1 {[%emt 0:01:49]} Re2 $36 {[%emt 0:02:11][%mdl 2048] Black has some pressure.} 24. Nc5 {[%emt 0:02:47]} Bc4 {[%emt 0:04:10] And now ...b6 would win.} 25. Rc1 {[%emt 0:04:34]} (25. Rd2 $11) 25... Rxf2 $17 {[%emt 0:01:29]} 26. Rhe1 {[%emt 0:03:09]} (26. g4 $17) 26... b6 $19 {[%emt 0:01:10]} ({Stronger than} 26... Rxg2 27. Ne6) 27. Nb3 {[%emt 0:02:04]} Re8 {[%emt 0:00:33]} 28. Rxe8+ $2 {[%emt 0:01:49]} (28. g4 {keeps fighting.}) 28... Qxe8 {[%emt 0:00:04]} 29. Re1 {[%emt 0:02:17] Inhibits Qe4+.} Qg6+ {[%emt 0:01:15]} ({But not} 29... Re2 $2 30. Rxe2 Qxe2 31. Qc3 $19) 30. Ka1 {[%emt 0:01:03]} Qxg2 {[%emt 0:02:26]} 31. Nc1 {[%emt 0:01:29]} Rc2 {[%emt 0:02:09]} 32. b3 {[%emt 0:00:42] [#]} (32. Na2 $142 Qxh3 33. Qxb6) 32... Bd3 $1 {[%emt 0:01:02][%mdl 512]} 33. Qxb6 {[%emt 0:00:55]} (33. Re8+ Kh7) 33... Qd2 {[%emt 0:00:54] Active counter play! Black mates.} 34. Qe6+ {[%emt 0:00:36]} Kh7 {[%emt 0:00:23]} 35. Qe3 {[%emt 0:00:17]} Qc3+ {[%emt 0:00:08] Weighted Error Value: White=0.67/Black=0.09 (flawless)} 0-1

[Event "44th Chess Olympiad Women 2022"]
[Site "Chennai"]
[Date "2022.07.30"]
[Round "2.8"]
[White "Schneider, Jana"]
[Black "Steffensen, Elena"]
[Result "1-0"]
[ECO "B08"]
[WhiteElo "2342"]
[BlackElo "2044"]
[Annotator "TA"]
[PlyCount "55"]
[EventDate "2022.07.29"]
[EventType "team-tourn"]
[EventCountry "IND"]
[SourceTitle "playchess.com"]
[Source "ChessBase"]
[SourceQuality "1"]
[WhiteTeam "Germany"]
[BlackTeam "Denmark"]
[WhiteTeamCountry "GER"]
[BlackTeamCountry "DEN"]
[TimeControl "40/5400+30:1800+30"]

{[%evp 13,55,49,52,58,59,42,74,71,119,100,121,78,98,87,86,29,112,110,133,129,202,43,141,127,329,320,330,303,319,291,315,328,337,313,286,262,286,296,568,557,799,747,2166,2141]} 1. e4 {[%emt 0:00:06]} g6 {[%emt 0:00:04]} 2. d4 {[%emt 0:00:07]} Bg7 {[%emt 0:00:09]} 3. Nc3 {[%emt 0:00:09]} c6 {[%emt 0:00:10]} 4. Bc4 {[%emt 0:00:16]} d6 {[%emt 0:03:28]} 5. Bb3 {[%emt 0:00:49]} Nf6 {[%emt 0:04:28]} 6. Nf3 {[%emt 0:00:40]} O-O {[%emt 0:07:45]} 7. O-O {[%emt 0:00:38]} b5 {[%emt 0:11:26]} 8. e5 {[%emt 0:08:24] B08: Pirc Defence: Classical System.} Ne8 {[%emt 0:05:42]} 9. Bg5 {[%emt 0:05:54] [#]} h6 $146 {[%emt 0:03:33]} ({Predecessor:} 9... b4 10. Ne4 d5 11. Ng3 f6 12. exf6 exf6 13. Bd2 a5 14. a3 a4 15. axb4 axb3 16. Rxa8 Ba6 17. Re1 Qb6 18. b5 Nc7 19. Rxb8 {1-0 (19) Salomon,J (2317)-Hansen,L (2027) Oslo 2014}) 10. Be3 {[%emt 0:04:15] White is better.} d5 {[%emt 0:01:49]} (10... a5 $142) 11. Qd2 {[%emt 0:02:58]} Kh7 {[%emt 0:00:23]} 12. Nh4 {[%emt 0:01:18]} e6 {[%emt 0:07:47]} 13. Nf3 {[%emt 0:02:07]} Nd7 {[%emt 0:01:57]} 14. h4 {[%emt 0:13:48]} (14. Ne2 $16) 14... c5 {[%emt 0:10:08]} (14... f6 $11 {keeps the balance.}) 15. Nxb5 $16 {[%emt 0:10:33]} (15. dxc5 Nxe5 16. Nxe5 (16. Nxb5 Nxf3+ 17. gxf3 Bb7 $17) 16... Bxe5 $14) 15... Ba6 {[%emt 0:07:29]} 16. a4 {[%emt 0:05:16][%cal Ba2a4,Ba4b5][%mdl 32] 0x0.001f24f210f6dp-1022s more active pieces.} Rb8 {[%emt 0:07:20]} (16... Nc7 $16) 17. c4 $2 {[%emt 0:01:48] [#]} (17. dxc5 $6 Nxe5 18. Nxe5 Bxe5 $16) ({White should try} 17. h5 $18) 17... cxd4 {[%emt 0:02:57]} ({Better is} 17... dxc4 $1 $14 18. Bxc4 Bb7) 18. Qxd4 {[%emt 0:01:15]} ({Don't play} 18. Bxd4 $6 dxc4 19. Bxc4 Nxe5 20. Bxe5 (20. Nxe5 Bxe5 21. Rfd1 Bxd4 $11) 20... Qxd2 21. Nxd2 Bxe5 $11) 18... Bxb5 $2 {[%emt 0:03:28] Loses the game.} (18... Nd6 $16) 19. axb5 $18 {[%emt 0:02:34]} Nd6 {[%emt 0:01:04]} 20. Rxa7 {[%emt 0:11:24]} Nf5 {[%emt 0:02:53]} 21. Qf4 {[%emt 0:03:02]} Nxe3 {[%emt 0:02:58]} 22. Qxe3 {[%emt 0:02:10]} ({Don't do} 22. fxe3 Qe8 23. cxd5 Nc5) 22... dxc4 {[%emt 0:02:21]} 23. Bxc4 {[%emt 0:03:04] [#] And now Rd1 would win.} Nb6 {[%emt 0:01:38]} 24. Be2 {[%emt 0:01:17][%cal Oh4h5] h5! is the strong threat.} Nd5 {[%emt 0:01:43]} 25. Qe4 {[%emt 0:01:25]} Ne7 $2 {[%emt 0:03:44]} (25... Ra8) 26. Rd1 {[%emt 0:01:00][%cal Bf1d1,Bd1d7,Bd7e7][%mdl 32] White is clearly winning.} Qe8 {[%emt 0:00:24]} 27. Rdd7 {[%emt 0:01:38]} Rd8 {[%emt 0:00:40]} 28. Rxe7 {[%emt 0:00:14] Weighted Error Value: White=0.27 (precise) /Black=0.53} 1-0

[Event "44th Chess Olympiad Women 2022"]
[Site "Chennai"]
[Date "2022.07.30"]
[Round "2.8"]
[White "Nilssen, Ellen Fredericia"]
[Black "Heinemann, Josefine"]
[Result "0-1"]
[ECO "E51"]
[WhiteElo "2142"]
[BlackElo "2321"]
[Annotator "TA"]
[PlyCount "70"]
[EventDate "2022.07.29"]
[EventType "team-tourn"]
[EventCountry "IND"]
[SourceTitle "playchess.com"]
[Source "ChessBase"]
[SourceQuality "1"]
[WhiteTeam "Denmark"]
[BlackTeam "Germany"]
[WhiteTeamCountry "DEN"]
[BlackTeamCountry "GER"]
[TimeControl "40/5400+30:1800+30"]

{[%evp 13,69,0,0,2,0,-1,0,0,14,11,20,0,0,-8,0,0,0,0,0,0,5,16,27,-34,-32,-37,-53,-111,-87,-167,-22,-10,-6,-22,-4,-60,-39,-175,-165,-153,-171,-166,-166,-177,-156,-312,-319,-729,-443,-1185,-1140,-5577,-5561,-5016,-3129,-2432,-2359,-29999]} 1. d4 {[%emt 0:00:08]} Nf6 {[%emt 0:00:04]} 2. c4 {[%emt 0:00:14]} e6 {[%emt 0:00:05]} 3. Nc3 {[%emt 0:00:11]} Bb4 {[%emt 0:00:07]} 4. e3 {[%emt 0:00:17]} O-O {[%emt 0:00:06]} 5. Bd2 {[%emt 0:00:20]} d5 {[%emt 0:00:11]} 6. Nf3 {[%emt 0:00:25]} b6 {[%emt 0:00:10]} 7. cxd5 {[%emt 0:00:41]} exd5 {[%emt 0:00:06]} 8. Rc1 {[%emt 0:00:12] E51: Nimzo-Indian: Rubinstein: 4...0-0 5 Nf3 d5.} Bb7 {[%emt 0:00:20]} 9. Bd3 {[%emt 0:00:30]} Be7 {[%emt 0:00:21]} 10. O-O {[%emt 0:02:09] The position is equal.} c5 {[%emt 0:00:37]} 11. dxc5 {[%emt 0:03:10]} bxc5 {[%emt 0:01:08]} 12. Qe2 {[%emt 0:08:05]} Re8 {[%emt 0:10:15]} 13. Rfd1 {[%emt 0:05:01] [#]} (13. Na4 $5 {[%cal Ra4c5]}) 13... Nbd7 $146 {[%emt 0:04:34]} ({Predecessor:} 13... c4 14. Bc2 Nc6 15. Be1 Bc5 16. Ba4 Bb6 17. b3 cxb3 18. axb3 Re6 19. h3 Qe7 20. Nxd5 Nxd5 21. Rxd5 {1-0 (56) Furman,S-Simagin,V Vilnius 1949}) 14. Ba6 $1 {[%emt 0:07:15]} Bc6 {[%emt 0:05:10]} 15. Bb5 {[%emt 0:00:26]} Bxb5 {[%emt 0:00:33]} 16. Nxb5 {[%emt 0:00:49]} a6 {[%emt 0:01:53]} 17. Nc3 {[%emt 0:01:43]} Bd6 {[%emt 0:05:47]} 18. Qd3 {[%emt 0:03:55]} (18. b3 $11) 18... c4 $15 {[%emt 0:07:37]} 19. Qf5 {[%emt 0:11:17]} Nc5 {[%emt 0:03:20]} 20. Rb1 {[%emt 0:00:28]} (20. Nxd5 Nxd5 21. Rxc4 Rc8 $1 $17) (20. Qc2 $15) 20... Nd3 $1 $17 {[%emt 0:04:15]} 21. Ne1 {[%emt 0:04:03] [#]} ({Not} 21. Nxd5 $2 Nxd5 22. Ng5 Nf6 $19) (21. Rf1 $17) 21... Re5 {[%emt 0:04:56]} (21... Bxh2+ $1 $19 {[%mdl 512]} 22. Kf1 (22. Kxh2 $2 Re5 $19) 22... Re5) 22. Qf3 $11 {[%emt 0:01:29]} Nc5 {[%emt 0:02:05][%cal Bd3c5,Bc5e4,Be4c3][%mdl 32]} 23. Ne2 {[%emt 0:03:20]} Nfe4 $36 {[%emt 0:07:40][%mdl 2048] Black has the initiative.} 24. Ng3 {[%emt 0:12:48]} ({Better is} 24. Rbc1 $11) 24... Re6 {[%emt 0:07:02] And now ...Rf6 would win.} 25. Bc3 {[%emt 0:03:34] Inhibits Rf6. White does not recover from this.} (25. Bb4 $15) 25... Bxg3 $19 {[%emt 0:00:59]} 26. hxg3 {[%emt 0:00:32]} Nxc3 {[%emt 0:00:25] Black is more active.} 27. bxc3 {[%emt 0:00:06] [#]} Ne4 $1 {[%emt 0:00:08]} 28. Rb2 {[%emt 0:07:59]} Nxc3 {[%emt 0:03:56]} 29. Rd4 {[%emt 0:00:07]} (29. Rc1 $17 Ne4 30. Qd1) 29... Rb8 {[%emt 0:04:50]} 30. Rc2 {[%emt 0:05:00]} (30. Rdd2) 30... Qa5 {[%emt 0:01:51] ...Rb1 is the strong threat.} 31. Rcd2 {[%emt 0:04:20]} (31. Kh2 $142 Rb1 32. Rxc4) 31... Rb1 {[%emt 0:05:25]} 32. Kf1 {[%emt 0:00:05]} Rh6 {[%emt 0:01:50][%cal Rh6h1]} 33. Rh4 {[%emt 0:00:51] Against Rh1+} Rxh4 {[%emt 0:00:08]} 34. gxh4 {[%emt 0:00:04]} Ne4 {[%emt 0:00:25] ( -> ...Rxe1+)} 35. Rd3 {[%emt 0:00:38]} Qxe1# {[%emt 0:00:06] Weighted Error Value: White=1.04/Black=0.30} 0-1